[Event "Live Chess"]
[Site "Chess.com"]
[Date "2024.06.01"]
[Round "-"]
[White "JanMur7"]
[Black "GoldsmanB"]
[Result "1-0"]
[WhiteElo "2307"]
[BlackElo "1105"]
[TimeControl "300"]
[EndTime "15:52:22 PDT"]
[Termination "JanMur7 won by resignation"]

1. c4 {[%clk 0:04:57.2]} 1... Nf6 {[%clk 0:04:58.2]} 2. Nc3 {[%clk 0:04:56.6]}
2... e5 {[%clk 0:04:56.1]} 3. Nf3 {[%clk 0:04:55.2]} 3... Nc6 {[%clk 0:04:52.8]}
4. e4 {[%clk 0:04:53.5]} 4... Bb4 {[%clk 0:04:50.6]} 5. d3 {[%clk 0:04:51.9]}
5... d6 {[%clk 0:04:48.9]} 6. Be2 {[%clk 0:04:51.2]} 6... Be6 {[%clk 0:04:47.8]}
7. O-O {[%clk 0:04:49.8]} 7... O-O {[%clk 0:04:46.6]} 8. b3 {[%clk 0:04:49.7]}
8... Bxc3 {[%clk 0:04:43]} 9. Rb1 {[%clk 0:04:48.4]} 9... Nd4 {[%clk 0:04:36]}
10. Nxd4 {[%clk 0:04:36.9]} 10... Bxd4 {[%clk 0:04:35.9]} 11. Kh1 {[%clk
0:04:34.6]} 11... Qe7 {[%clk 0:04:30.2]} 12. f4 {[%clk 0:04:30.1]} 12... exf4
{[%clk 0:04:26.2]} 13. Bxf4 {[%clk 0:04:28.6]} 13... Be5 {[%clk 0:04:22.2]} 14.
Bg5 {[%clk 0:04:23.8]} 14... h6 {[%clk 0:04:15.3]} 15. Bh4 {[%clk 0:04:22]}
15... Rad8 {[%clk 0:03:57.5]} 16. d4 {[%clk 0:04:19.6]} 16... Bf4 {[%clk
0:03:52.4]} 17. Rxf4 {[%clk 0:04:16.2]} 17... g5 {[%clk 0:03:43.4]} 18. Rxf6
{[%clk 0:03:51.3]} 18... Qxf6 {[%clk 0:03:38.2]} 19. Bg3 {[%clk 0:03:49]} 19...
a6 {[%clk 0:03:22.1]} 20. Qd3 {[%clk 0:03:44.5]} 20... c5 {[%clk 0:03:15.8]} 21.
d5 {[%clk 0:03:33.8]} 21... Bd7 {[%clk 0:03:10.7]} 22. Rf1 {[%clk 0:03:29]}
22... Qe7 {[%clk 0:03:05.9]} 23. Qc3 {[%clk 0:03:25.3]} 23... Bc8 {[%clk
0:03:01.1]} 24. Rf6 {[%clk 0:03:03.8]} 24... Kh7 {[%clk 0:02:47.2]} 25. Bd3
{[%clk 0:02:54.7]} 25... Kg8 {[%clk 0:02:31.6]} 26. Rxh6 {[%clk 0:02:31.4]}
26... f6 {[%clk 0:02:17.7]} 27. Qc2 {[%clk 0:02:01.5]} 27... Qg7 {[%clk
0:02:13.3]} 28. Rh5 {[%clk 0:01:56.9]} 28... Qg6 {[%clk 0:02:06.6]} 29. Qe2
{[%clk 0:01:52.3]} 29... g4 {[%clk 0:01:56.9]} 30. Rh4 {[%clk 0:01:40.9]} 30...
Rf7 {[%clk 0:01:40.8]} 31. e5 {[%clk 0:01:36.1]} 31... dxe5 {[%clk 0:01:34.8]}
32. Bxg6 {[%clk 0:01:33.9]} 1-0

[Event "Live Chess"]
[Site "Chess.com"]
[Date "2024.06.01"]
[Round "-"]
[White "katoma"]
[Black "McFim"]
[Result "1/2-1/2"]
[WhiteElo "2031"]
[BlackElo "1639"]
[TimeControl "300"]
[EndTime "15:52:31 PDT"]
[Termination "Game drawn by repetition"]

1. e4 {[%clk 0:04:57.1]} 1... c6 {[%clk 0:04:58.4]} 2. d4 {[%clk 0:04:55.2]}
2... d5 {[%clk 0:04:57.9]} 3. exd5 {[%clk 0:04:53.3]} 3... cxd5 {[%clk
0:04:57.1]} 4. Bd3 {[%clk 0:04:52.3]} 4... Nc6 {[%clk 0:04:54.9]} 5. c3 {[%clk
0:04:51.9]} 5... Nf6 {[%clk 0:04:53.1]} 6. Ne2 {[%clk 0:04:51.4]} 6... Bg4
{[%clk 0:04:51.3]} 7. O-O {[%clk 0:04:50.3]} 7... e6 {[%clk 0:04:50]} 8. Qe1
{[%clk 0:04:49]} 8... Be7 {[%clk 0:04:48.1]} 9. f3 {[%clk 0:04:44.9]} 9... Bh5
{[%clk 0:04:46.7]} 10. Qh4 {[%clk 0:04:29.4]} 10... O-O {[%clk 0:04:41]} 11. Nf4
{[%clk 0:04:21]} 11... Bg6 {[%clk 0:04:39.2]} 12. Nxg6 {[%clk 0:04:18]} 12...
hxg6 {[%clk 0:04:37.4]} 13. Bg5 {[%clk 0:04:16.3]} 13... Nh7 {[%clk 0:04:29.9]}
14. Bxe7 {[%clk 0:04:14]} 14... Nxe7 {[%clk 0:04:26.6]} 15. Qf2 {[%clk
0:04:07.9]} 15... Nf6 {[%clk 0:04:24.6]} 16. Nd2 {[%clk 0:04:03.5]} 16... a6
{[%clk 0:04:23.2]} 17. Rae1 {[%clk 0:04:01.4]} 17... Qc7 {[%clk 0:04:12.2]} 18.
Re2 {[%clk 0:03:31.5]} 18... b5 {[%clk 0:04:09.9]} 19. Nb3 {[%clk 0:03:23.4]}
19... Nc6 {[%clk 0:04:05.6]} 20. Nc5 {[%clk 0:03:18.2]} 20... b4 {[%clk
0:03:59.8]} 21. Nxa6 {[%clk 0:03:11.2]} 21... Qb6 {[%clk 0:03:55.1]} 22. Nxb4
{[%clk 0:02:54.8]} 22... Nxb4 {[%clk 0:03:52]} 23. cxb4 {[%clk 0:02:52.6]} 23...
Rxa2 {[%clk 0:03:48]} 24. b5 {[%clk 0:02:50.1]} 24... Rb8 {[%clk 0:03:34.1]} 25.
Rc1 {[%clk 0:02:47]} 25... Ne8 {[%clk 0:03:21.4]} 26. h3 {[%clk 0:02:43.5]}
26... Nd6 {[%clk 0:03:17.8]} 27. Rc6 {[%clk 0:02:39.3]} 27... Qd8 {[%clk
0:03:16.3]} 28. Rec2 {[%clk 0:02:32]} 28... Ra5 {[%clk 0:03:09.5]} 29. b4 {[%clk
0:01:59.8]} 29... Ra1+ {[%clk 0:03:05]} 30. Kh2 {[%clk 0:01:56.8]} 30... Raa8
{[%clk 0:02:56.1]} 31. R2c5 {[%clk 0:01:48.5]} 31... Nb7 {[%clk 0:02:06.2]} 32.
Rc2 {[%clk 0:01:46.4]} 32... Nd6 {[%clk 0:02:04.3]} 33. R2c5 {[%clk 0:01:44.2]}
33... Nb7 {[%clk 0:02:02.3]} 34. Rc2 {[%clk 0:01:42.6]} 34... Nd6 {[%clk
0:02:00.6]} 1/2-1/2

[Event "Live Chess"]
[Site "Chess.com"]
[Date "2024.06.01"]
[Round "-"]
[White "ACM42"]
[Black "TheSmoulderingMaster"]
[Result "1-0"]
[WhiteElo "2154"]
[BlackElo "1725"]
[TimeControl "300"]
[EndTime "15:52:34 PDT"]
[Termination "ACM42 won by resignation"]

1. e4 {[%clk 0:04:56.8]} 1... c5 {[%clk 0:04:58.8]} 2. Nf3 {[%clk 0:04:54.8]}
2... d6 {[%clk 0:04:57.2]} 3. d4 {[%clk 0:04:53.2]} 3... cxd4 {[%clk 0:04:55.6]}
4. Nxd4 {[%clk 0:04:53.1]} 4... Nf6 {[%clk 0:04:55]} 5. Nc3 {[%clk 0:04:49.1]}
5... g6 {[%clk 0:04:54.2]} 6. f4 {[%clk 0:04:46.2]} 6... Bg7 {[%clk 0:04:53.2]}
7. e5 {[%clk 0:04:45.5]} 7... dxe5 {[%clk 0:04:51.4]} 8. fxe5 {[%clk 0:04:45.4]}
8... Nh5 {[%clk 0:04:50.8]} 9. Bb5+ {[%clk 0:04:42.6]} 9... Bd7 {[%clk
0:04:48.6]} 10. e6 {[%clk 0:04:30.7]} 10... Bxb5 {[%clk 0:04:38.9]} 11. exf7+
{[%clk 0:04:23.8]} 11... Kxf7 {[%clk 0:04:38]} 12. Qf3+ {[%clk 0:04:18]} 12...
Nf6 {[%clk 0:04:35.8]} 13. Ndxb5 {[%clk 0:04:17.2]} 13... Nc6 {[%clk 0:04:29.2]}
14. Be3 {[%clk 0:04:01]} 14... Re8 {[%clk 0:04:17.7]} 15. Rd1 {[%clk 0:03:58.8]}
15... Qa5 {[%clk 0:04:13.5]} 16. O-O {[%clk 0:03:57.9]} 16... Kg8 {[%clk
0:04:11.5]} 17. a3 {[%clk 0:03:53.5]} 17... a6 {[%clk 0:04:07.4]} 18. Nd4 {[%clk
0:03:49]} 18... Rac8 {[%clk 0:03:59.3]} 19. Ne6 {[%clk 0:03:45.6]} 19... Ne5
{[%clk 0:03:53]} 20. Qg3 {[%clk 0:03:36.1]} 20... Nc4 {[%clk 0:03:47.3]} 21.
Nxg7 {[%clk 0:03:13.7]} 21... Kxg7 {[%clk 0:03:45.2]} 22. Bd4 {[%clk 0:03:07.1]}
22... Nxb2 {[%clk 0:03:40.7]} 23. Rde1 {[%clk 0:03:05.7]} 23... Nc4 {[%clk
0:03:34.6]} 24. Rxe7+ {[%clk 0:03:03]} 24... Rxe7 {[%clk 0:03:32.9]} 25. Bxf6+
{[%clk 0:03:02.3]} 25... Kf7 {[%clk 0:03:29.5]} 26. Bxe7+ {[%clk 0:02:55.1]}
26... Kxe7 {[%clk 0:03:28.6]} 27. Qh4+ {[%clk 0:02:49.7]} 27... Kd6 {[%clk
0:03:17.6]} 28. Rd1+ {[%clk 0:02:31.3]} 28... Kc7 {[%clk 0:03:13.9]} 29. Qxc4+
{[%clk 0:02:28.1]} 29... Kb8 {[%clk 0:03:10.5]} 30. Qf4+ {[%clk 0:02:27.3]}
30... Ka8 {[%clk 0:03:06]} 31. Nd5 {[%clk 0:02:24.2]} 31... Rd8 {[%clk
0:02:56.1]} 32. Nc7+ {[%clk 0:02:19.3]} 32... Ka7 {[%clk 0:02:54.1]} 33. Rxd8
{[%clk 0:02:15.7]} 33... Qe1+ {[%clk 0:02:52.1]} 34. Qf1 {[%clk 0:02:14.9]}
34... Qe3+ {[%clk 0:02:49.2]} 35. Kh1 {[%clk 0:02:14.2]} 1-0

[Event "Live Chess"]
[Site "Chess.com"]
[Date "2024.06.01"]
[Round "-"]
[White "TedUdale"]
[Black "oscalik"]
[Result "1-0"]
[WhiteElo "2108"]
[BlackElo "2292"]
[TimeControl "300"]
[EndTime "15:52:37 PDT"]
[Termination "TedUdale won on time"]

1. e4 {[%clk 0:04:58.1]} 1... c5 {[%clk 0:04:57.3]} 2. Nc3 {[%clk 0:04:57.3]}
2... e6 {[%clk 0:04:52]} 3. f4 {[%clk 0:04:51.7]} 3... d5 {[%clk 0:04:50.9]} 4.
d3 {[%clk 0:04:50.6]} 4... Nc6 {[%clk 0:04:33.2]} 5. Nf3 {[%clk 0:04:44.7]} 5...
d4 {[%clk 0:04:24.4]} 6. Ne2 {[%clk 0:04:42.9]} 6... b6 {[%clk 0:03:51.9]} 7.
Ng3 {[%clk 0:04:40.6]} 7... h5 {[%clk 0:03:50.6]} 8. h4 {[%clk 0:04:33.3]} 8...
Nf6 {[%clk 0:03:38.1]} 9. Bd2 {[%clk 0:04:28]} 9... Ng4 {[%clk 0:03:26.1]} 10.
Nh2 {[%clk 0:04:22.9]} 10... Qxh4 {[%clk 0:03:06.7]} 11. Nxg4 {[%clk 0:04:13.9]}
11... Qxg3+ {[%clk 0:03:02]} 12. Nf2 {[%clk 0:04:13.1]} 12... Be7 {[%clk
0:02:14.9]} 13. Rh3 {[%clk 0:04:07.7]} 13... Qg6 {[%clk 0:02:06.3]} 14. Qf3
{[%clk 0:03:58.8]} 14... Bb7 {[%clk 0:01:40.2]} 15. O-O-O {[%clk 0:03:56.3]}
15... O-O-O {[%clk 0:01:26.4]} 16. Be2 {[%clk 0:03:53.6]} 16... f5 {[%clk
0:01:17.2]} 17. Rdh1 {[%clk 0:03:48.4]} 17... h4 {[%clk 0:01:10.1]} 18. Kb1
{[%clk 0:03:37.1]} 18... Rdf8 {[%clk 0:00:59]} 19. g3 {[%clk 0:03:28]} 19... e5
{[%clk 0:00:53.9]} 20. exf5 {[%clk 0:02:34.3]} 20... Qxf5 {[%clk 0:00:52.2]} 21.
Qd5 {[%clk 0:02:18.9]} 21... Nb4 {[%clk 0:00:45.2]} 22. Qb3 {[%clk 0:02:13.5]}
22... hxg3 {[%clk 0:00:33.2]} 23. Rxh8 {[%clk 0:02:09.6]} 23... Bxh1 {[%clk
0:00:27.3]} 24. Bg4 {[%clk 0:02:01.3]} 24... Qxg4 {[%clk 0:00:24.5]} 25. Rxf8+
{[%clk 0:01:56.9]} 25... Bxf8 {[%clk 0:00:22.5]} 26. Nxg4 {[%clk 0:01:56]} 26...
g2 {[%clk 0:00:21.3]} 27. Qe6+ {[%clk 0:01:53.2]} 27... Kc7 {[%clk 0:00:14.2]}
28. Qxe5+ {[%clk 0:01:43.1]} 28... Bd6 {[%clk 0:00:12.4]} 29. Qe1 {[%clk
0:01:41.8]} 29... Bxf4 {[%clk 0:00:01.1]} 30. Bxf4+ {[%clk 0:01:40.3]} 1-0

[Event "Live Chess"]
[Site "Chess.com"]
[Date "2024.06.01"]
[Round "-"]
[White "hapehansen"]
[Black "Yegorych"]
[Result "1-0"]
[WhiteElo "2259"]
[BlackElo "1578"]
[TimeControl "300"]
[EndTime "15:52:38 PDT"]
[Termination "hapehansen won by resignation"]

1. Nf3 {[%clk 0:04:54.8]} 1... Nf6 {[%clk 0:04:56.5]} 2. c4 {[%clk 0:04:52.9]}
2... d5 {[%clk 0:04:53.1]} 3. cxd5 {[%clk 0:04:50.4]} 3... Nxd5 {[%clk
0:04:49.7]} 4. e4 {[%clk 0:04:48.3]} 4... Nf4 {[%clk 0:04:29.8]} 5. d4 {[%clk
0:04:45.5]} 5... e5 {[%clk 0:04:21.8]} 6. Nxe5 {[%clk 0:04:35.8]} 6... Bb4+
{[%clk 0:04:11.9]} 7. Nc3 {[%clk 0:04:32.6]} 7... Ne6 {[%clk 0:04:00]} 8. Be3
{[%clk 0:04:15.2]} 8... O-O {[%clk 0:03:53.4]} 9. Bc4 {[%clk 0:04:09.2]} 9... c5
{[%clk 0:03:45.6]} 10. d5 {[%clk 0:04:00.2]} 10... Nd4 {[%clk 0:03:36.7]} 11.
Bxd4 {[%clk 0:03:56]} 11... cxd4 {[%clk 0:03:36.6]} 12. Qxd4 {[%clk 0:03:54.6]}
12... Nc6 {[%clk 0:03:32.6]} 13. Nxc6 {[%clk 0:03:49.1]} 13... bxc6 {[%clk
0:03:28.6]} 14. O-O {[%clk 0:03:45.9]} 14... c5 {[%clk 0:03:16.6]} 15. Qe3
{[%clk 0:03:36]} 15... Qc7 {[%clk 0:02:53.6]} 16. e5 {[%clk 0:03:26.1]} 16...
Re8 {[%clk 0:02:39.8]} 17. d6 {[%clk 0:03:23]} 17... Qa5 {[%clk 0:02:26.5]} 18.
Qf3 {[%clk 0:03:14.5]} 18... Be6 {[%clk 0:02:16.4]} 19. Bxe6 {[%clk 0:03:10.5]}
19... fxe6 {[%clk 0:02:07.4]} 20. Ne4 {[%clk 0:02:49.7]} 20... Bd2 {[%clk
0:01:46.1]} 21. Rad1 {[%clk 0:02:42.4]} 21... Bh6 {[%clk 0:01:36.5]} 22. a3
{[%clk 0:02:19]} 22... Rf8 {[%clk 0:01:27.4]} 23. Qc3 {[%clk 0:02:16.5]} 23...
Qxc3 {[%clk 0:01:17.5]} 24. bxc3 {[%clk 0:02:14.8]} 24... c4 {[%clk 0:00:59.2]}
25. Nc5 {[%clk 0:02:11]} 25... Kf7 {[%clk 0:00:53.1]} 26. Rb1 {[%clk 0:01:48]}
26... Rab8 {[%clk 0:00:47.5]} 27. Nd7 {[%clk 0:01:41.1]} 27... Rxb1 {[%clk
0:00:41.2]} 28. Rxb1 {[%clk 0:01:40]} 28... Rd8 {[%clk 0:00:37.8]} 29. Rb7
{[%clk 0:01:36.3]} 29... Ke8 {[%clk 0:00:35.2]} 30. Nc5 {[%clk 0:01:32.5]} 30...
Bd2 {[%clk 0:00:28.2]} 31. Nxe6 {[%clk 0:01:25.9]} 31... Rd7 {[%clk 0:00:18.5]}
32. Nxg7+ {[%clk 0:01:16.3]} 32... Kd8 {[%clk 0:00:14.1]} 33. Ne6+ {[%clk
0:01:13.3]} 33... Kc8 {[%clk 0:00:09.4]} 34. Rb4 {[%clk 0:01:05.3]} 1-0

[Event "Live Chess"]
[Site "Chess.com"]
[Date "2024.06.01"]
[Round "-"]
[White "CheckThis4"]
[Black "Duke_of_Bebington"]
[Result "1-0"]
[WhiteElo "2689"]
[BlackElo "1638"]
[TimeControl "300"]
[EndTime "15:52:45 PDT"]
[Termination "CheckThis4 won by resignation"]

1. d4 {[%clk 0:04:57.2]} 1... d5 {[%clk 0:04:58.5]} 2. Nc3 {[%clk 0:04:55.7]}
2... Nf6 {[%clk 0:04:56.8]} 3. e4 {[%clk 0:04:54.8]} 3... Nxe4 {[%clk
0:04:53.6]} 4. Nxe4 {[%clk 0:04:53.2]} 4... dxe4 {[%clk 0:04:51.7]} 5. Bc4
{[%clk 0:04:52.8]} 5... Bf5 {[%clk 0:04:38.6]} 6. g4 {[%clk 0:04:47.5]} 6... Bg6
{[%clk 0:04:37]} 7. Ne2 {[%clk 0:04:42.3]} 7... Nd7 {[%clk 0:04:33.8]} 8. h4
{[%clk 0:04:39.9]} 8... h5 {[%clk 0:04:31.5]} 9. Nf4 {[%clk 0:04:38.5]} 9... e5
{[%clk 0:04:21.8]} 10. Nxg6 {[%clk 0:04:34.6]} 10... fxg6 {[%clk 0:04:21.7]} 11.
c3 {[%clk 0:04:15]} 11... Qe7 {[%clk 0:04:15.5]} 12. Bg5 {[%clk 0:04:11.4]}
12... Nf6 {[%clk 0:04:11.2]} 13. Qa4+ {[%clk 0:03:54.8]} 13... c6 {[%clk
0:04:08.9]} 14. O-O-O {[%clk 0:03:37.2]} 14... b5 {[%clk 0:04:07.3]} 15. Bxb5
{[%clk 0:03:35]} 15... cxb5 {[%clk 0:04:06.3]} 16. Qxb5+ {[%clk 0:03:34.6]}
16... Qd7 {[%clk 0:04:03.6]} 17. Qe2 {[%clk 0:03:12.3]} 17... Be7 {[%clk
0:03:52.7]} 18. dxe5 {[%clk 0:03:07.8]} 18... Nxg4 {[%clk 0:03:47.5]} 19. Rxd7
{[%clk 0:03:03.9]} 19... Kxd7 {[%clk 0:03:39.8]} 20. Rd1+ {[%clk 0:02:59.6]}
20... Ke8 {[%clk 0:03:38.3]} 21. Qb5+ {[%clk 0:02:55.6]} 21... Kf7 {[%clk
0:03:36.1]} 22. Qd5+ {[%clk 0:02:52.8]} 22... Ke8 {[%clk 0:03:33.9]} 23. Qxa8+
{[%clk 0:02:49.3]} 23... Kf7 {[%clk 0:03:32.9]} 24. Qxh8 {[%clk 0:02:45.8]} 1-0

[Event "Live Chess"]
[Site "Chess.com"]
[Date "2024.06.01"]
[Round "-"]
[White "Dhaydon19"]
[Black "ShanthamGrarks"]
[Result "1-0"]
[WhiteElo "2679"]
[BlackElo "1789"]
[TimeControl "300"]
[EndTime "15:53:17 PDT"]
[Termination "Dhaydon19 won by resignation"]

1. d4 {[%clk 0:04:57.3]} 1... e6 {[%clk 0:04:56.8]} 2. c3 {[%clk 0:04:57]} 2...
Nf6 {[%clk 0:04:55.9]} 3. Nf3 {[%clk 0:04:56.6]} 3... d5 {[%clk 0:04:55.1]} 4.
g3 {[%clk 0:04:54.6]} 4... c5 {[%clk 0:04:54.5]} 5. Bg2 {[%clk 0:04:50.7]} 5...
Nc6 {[%clk 0:04:53.7]} 6. dxc5 {[%clk 0:04:50]} 6... Bxc5 {[%clk 0:04:51.8]} 7.
O-O {[%clk 0:04:49.7]} 7... O-O {[%clk 0:04:49.9]} 8. Qc2 {[%clk 0:04:47.9]}
8... h6 {[%clk 0:04:41.4]} 9. Nbd2 {[%clk 0:04:46.9]} 9... Bd7 {[%clk
0:04:38.9]} 10. e4 {[%clk 0:04:46.2]} 10... dxe4 {[%clk 0:04:34.3]} 11. Nxe4
{[%clk 0:04:44.4]} 11... Nxe4 {[%clk 0:04:33.2]} 12. Qxe4 {[%clk 0:04:42.1]}
12... Ne7 {[%clk 0:04:29.6]} 13. Ne5 {[%clk 0:04:39.5]} 13... Nc6 {[%clk
0:04:10.9]} 14. Rd1 {[%clk 0:04:32.5]} 14... Nxe5 {[%clk 0:04:08.8]} 15. Qxe5
{[%clk 0:04:31.7]} 15... Qb6 {[%clk 0:03:53.1]} 16. Rxd7 {[%clk 0:04:26.9]}
16... Bxf2+ {[%clk 0:03:51.7]} 17. Kf1 {[%clk 0:04:23.5]} 17... Rad8 {[%clk
0:03:50]} 18. Rxd8 {[%clk 0:04:21.6]} 18... Rxd8 {[%clk 0:03:47.8]} 19. Bf3
{[%clk 0:04:21.1]} 19... Bg1 {[%clk 0:03:42.4]} 20. Qe2 {[%clk 0:04:11.9]} 20...
Rd1+ {[%clk 0:03:21.1]} 21. Kg2 {[%clk 0:04:09.3]} 21... Bxh2 {[%clk 0:03:20.1]}
22. Be3 {[%clk 0:04:01.6]} 22... Qd6 {[%clk 0:03:10.9]} 23. Rxd1 {[%clk
0:03:48.8]} 23... Qxg3+ {[%clk 0:03:09.4]} 24. Kh1 {[%clk 0:03:48]} 24... Qh3
{[%clk 0:03:03]} 25. Be4 {[%clk 0:03:43.7]} 25... Bf4+ {[%clk 0:02:54.6]} 26.
Kg1 {[%clk 0:03:39.3]} 26... Qg3+ {[%clk 0:02:48.8]} 27. Kf1 {[%clk 0:03:36.1]}
27... g6 {[%clk 0:02:31.3]} 28. Bf2 {[%clk 0:03:34.4]} 28... Qh2 {[%clk
0:02:22.1]} 29. Rd8+ {[%clk 0:03:30.4]} 29... Kh7 {[%clk 0:02:19]} 30. Bd4
{[%clk 0:03:27.8]} 30... Qh3+ {[%clk 0:02:14]} 31. Bg2 {[%clk 0:03:25.1]} 1-0

[Event "Live Chess"]
[Site "Chess.com"]
[Date "2024.06.01"]
[Round "-"]
[White "upoe610"]
[Black "updatedopenings2024"]
[Result "0-1"]
[WhiteElo "2197"]
[BlackElo "2007"]
[TimeControl "300"]
[EndTime "15:53:19 PDT"]
[Termination "updatedopenings2024 won by checkmate"]

1. c4 {[%clk 0:04:56.7]} 1... Nf6 {[%clk 0:04:58.2]} 2. g3 {[%clk 0:04:55.9]}
2... e6 {[%clk 0:04:58.1]} 3. Bg2 {[%clk 0:04:55.4]} 3... d5 {[%clk 0:04:58]} 4.
Nf3 {[%clk 0:04:54.6]} 4... Be7 {[%clk 0:04:56.8]} 5. O-O {[%clk 0:04:52.6]}
5... O-O {[%clk 0:04:56.7]} 6. d4 {[%clk 0:04:51.6]} 6... b6 {[%clk 0:04:56]} 7.
cxd5 {[%clk 0:04:43.4]} 7... exd5 {[%clk 0:04:55.9]} 8. Ne5 {[%clk 0:04:40.7]}
8... Bb7 {[%clk 0:04:55.8]} 9. Nc3 {[%clk 0:04:39.4]} 9... Nbd7 {[%clk
0:04:55.7]} 10. Qb3 {[%clk 0:04:31.6]} 10... c6 {[%clk 0:04:44.4]} 11. Bf4
{[%clk 0:04:27.4]} 11... Rc8 {[%clk 0:04:43.2]} 12. Rac1 {[%clk 0:04:25.9]}
12... Nh5 {[%clk 0:04:38.3]} 13. Nxd7 {[%clk 0:04:23.1]} 13... Qxd7 {[%clk
0:04:33.9]} 14. Bd2 {[%clk 0:04:21.7]} 14... Rfd8 {[%clk 0:04:29.7]} 15. Qc2
{[%clk 0:04:15.9]} 15... Nf6 {[%clk 0:04:28.2]} 16. a4 {[%clk 0:04:13.8]} 16...
c5 {[%clk 0:04:27.5]} 17. a5 {[%clk 0:04:12.8]} 17... cxd4 {[%clk 0:04:25.9]}
18. axb6 {[%clk 0:04:01.8]} 18... dxc3 {[%clk 0:04:24.2]} 19. bxc3 {[%clk
0:04:00.2]} 19... axb6 {[%clk 0:04:22.8]} 20. Rb1 {[%clk 0:03:59.1]} 20... Qc6
{[%clk 0:04:18]} 21. c4 {[%clk 0:03:54.5]} 21... Qxc4 {[%clk 0:04:14]} 22. Qxc4
{[%clk 0:03:53.5]} 22... dxc4 {[%clk 0:04:13.9]} 23. Bxb7 {[%clk 0:03:51.5]}
23... Rb8 {[%clk 0:04:06.8]} 24. Bf3 {[%clk 0:03:32]} 24... Rxd2 {[%clk
0:04:04.6]} 25. Rfc1 {[%clk 0:03:30.1]} 25... b5 {[%clk 0:03:26.6]} 26. Rxc4
{[%clk 0:03:25.8]} 26... b4 {[%clk 0:03:25.9]} 27. Kf1 {[%clk 0:03:20.5]} 27...
b3 {[%clk 0:03:24.3]} 28. Ke1 {[%clk 0:03:19.8]} 28... Ra2 {[%clk 0:03:23.3]}
29. Rxb3 {[%clk 0:03:13.7]} 29... Rxb3 {[%clk 0:03:20.8]} 30. Rc8+ {[%clk
0:03:12]} 30... Bf8 {[%clk 0:03:19.9]} 31. g4 {[%clk 0:03:09.6]} 31... Rb1+
{[%clk 0:03:18.1]} 32. Rc1 {[%clk 0:03:07.3]} 32... Rxc1# {[%clk 0:03:17.2]} 0-1

[Event "Live Chess"]
[Site "Chess.com"]
[Date "2024.06.01"]
[Round "-"]
[White "wadsy27"]
[Black "toog"]
[Result "1-0"]
[WhiteElo "2556"]
[BlackElo "2600"]
[TimeControl "300"]
[EndTime "15:53:36 PDT"]
[Termination "wadsy27 won on time"]

1. c4 {[%clk 0:04:57.9]} 1... e5 {[%clk 0:04:55.4]} 2. g3 {[%clk 0:04:57.4]}
2... c6 {[%clk 0:04:53.6]} 3. Nf3 {[%clk 0:04:55.9]} 3... e4 {[%clk 0:04:50.1]}
4. Nd4 {[%clk 0:04:55.3]} 4... d5 {[%clk 0:04:48.4]} 5. cxd5 {[%clk 0:04:54.7]}
5... Nf6 {[%clk 0:04:47.5]} 6. Nc3 {[%clk 0:04:52.3]} 6... Qb6 {[%clk
0:04:42.9]} 7. Nb3 {[%clk 0:04:48.7]} 7... a5 {[%clk 0:04:41.4]} 8. d3 {[%clk
0:04:39.3]} 8... a4 {[%clk 0:04:32.9]} 9. Nd2 {[%clk 0:04:38.2]} 9... e3 {[%clk
0:04:21.8]} 10. fxe3 {[%clk 0:04:33.5]} 10... cxd5 {[%clk 0:04:21]} 11. Nf3
{[%clk 0:04:21.3]} 11... a3 {[%clk 0:04:16.1]} 12. Qb3 {[%clk 0:04:11.9]} 12...
Qxb3 {[%clk 0:03:44.7]} 13. axb3 {[%clk 0:04:11.8]} 13... Bb4 {[%clk 0:03:42.9]}
14. Kd2 {[%clk 0:03:59.4]} 14... axb2 {[%clk 0:03:28.4]} 15. Bxb2 {[%clk
0:03:59.3]} 15... Rxa1 {[%clk 0:03:23.6]} 16. Bxa1 {[%clk 0:03:59.2]} 16... Nc6
{[%clk 0:03:22.9]} 17. Nd4 {[%clk 0:03:56.4]} 17... Be6 {[%clk 0:03:11.7]} 18.
Bg2 {[%clk 0:03:48.9]} 18... Kd7 {[%clk 0:03:09]} 19. Bb2 {[%clk 0:03:48]} 19...
Re8 {[%clk 0:02:48.6]} 20. h3 {[%clk 0:03:36]} 20... Rc8 {[%clk 0:02:03.6]} 21.
g4 {[%clk 0:03:22]} 21... h5 {[%clk 0:01:50.9]} 22. g5 {[%clk 0:03:20.2]} 22...
Nh7 {[%clk 0:01:50.2]} 23. h4 {[%clk 0:03:17.3]} 23... Nf8 {[%clk 0:01:47.7]}
24. Bf3 {[%clk 0:03:15.7]} 24... g6 {[%clk 0:01:46]} 25. Ra1 {[%clk 0:03:14]}
25... Ne5 {[%clk 0:01:31.8]} 26. Ra4 {[%clk 0:03:06.9]} 26... Nxf3+ {[%clk
0:01:24.9]} 27. exf3 {[%clk 0:03:00.9]} 27... Bd6 {[%clk 0:01:22.6]} 28. f4
{[%clk 0:02:59.4]} 28... Ke7 {[%clk 0:01:17.5]} 29. Ncb5 {[%clk 0:02:54.5]}
29... Bc5 {[%clk 0:01:10.9]} 30. Nxe6 {[%clk 0:02:43.3]} 30... Nxe6 {[%clk
0:01:05.9]} 31. Bf6+ {[%clk 0:02:35.8]} 31... Kd7 {[%clk 0:01:03.8]} 32. Nd4
{[%clk 0:02:18]} 32... Bxd4 {[%clk 0:00:54.4]} 33. Bxd4 {[%clk 0:02:17.9]} 33...
Nxd4 {[%clk 0:00:53.7]} 34. Rxd4 {[%clk 0:02:16.9]} 34... Ke6 {[%clk 0:00:51.3]}
35. Rb4 {[%clk 0:02:15.9]} 35... Rc7 {[%clk 0:00:48.4]} 36. Ke2 {[%clk
0:02:12.9]} 36... Kf5 {[%clk 0:00:32.8]} 37. Kf3 {[%clk 0:02:10.4]} 37... Ke6
{[%clk 0:00:31.5]} 38. Rb6+ {[%clk 0:02:09.1]} 38... Ke7 {[%clk 0:00:29.1]} 39.
f5 {[%clk 0:02:03.6]} 39... gxf5 {[%clk 0:00:26.2]} 40. d4 {[%clk 0:01:59.8]}
40... Rc1 {[%clk 0:00:20]} 41. Rxb7+ {[%clk 0:01:57.9]} 41... Ke6 {[%clk
0:00:19.4]} 42. Rb6+ {[%clk 0:01:56.9]} 42... Ke7 {[%clk 0:00:18.9]} 43. Rh6
{[%clk 0:01:53.5]} 43... Rf1+ {[%clk 0:00:17.1]} 44. Ke2 {[%clk 0:01:51.5]}
44... Rb1 {[%clk 0:00:15.8]} 45. Rxh5 {[%clk 0:01:50.8]} 45... Rxb3 {[%clk
0:00:15.2]} 46. Kf3 {[%clk 0:01:48.9]} 46... Rb1 {[%clk 0:00:14.4]} 47. Rh8
{[%clk 0:01:47.5]} 47... Rf1+ {[%clk 0:00:13.3]} 48. Ke2 {[%clk 0:01:46.6]}
48... Rh1 {[%clk 0:00:12.5]} 49. h5 {[%clk 0:01:42.7]} 49... Ke6 {[%clk
0:00:11.8]} 50. h6 {[%clk 0:01:40.8]} 50... f4 {[%clk 0:00:11.1]} 51. exf4
{[%clk 0:01:30.7]} 51... Kf5 {[%clk 0:00:10.4]} 52. h7 {[%clk 0:01:29.8]} 52...
Kxf4 {[%clk 0:00:08.1]} 53. g6 {[%clk 0:01:28.9]} 53... Rh2+ {[%clk 0:00:04.3]}
54. Ke1 {[%clk 0:01:28.1]} 54... fxg6 {[%clk 0:00:03.7]} 55. Rf8+ {[%clk
0:01:26.1]} 55... Ke3 {[%clk 0:00:03.6]} 56. Re8+ {[%clk 0:01:25.3]} 56... Kxd4
{[%clk 0:00:02.6]} 57. h8=Q+ {[%clk 0:01:24.3]} 57... Rxh8 {[%clk 0:00:02.4]}
58. Rxh8 {[%clk 0:01:23.3]} 58... g5 {[%clk 0:00:01.6]} 59. Rg8 {[%clk
0:01:22.1]} 59... Ke3 {[%clk 0:00:00.7]} 60. Rxg5 {[%clk 0:01:21.1]} 60... d4
{[%clk 0:00:00.6]} 61. Rg3+ {[%clk 0:01:20.1]} 1-0